[Event "4th Batumi Cup 2018"]
[Site "Batumi"]
[Date "2018.07.05"]
[Round "4"]
[White "Eynullayev, Altay"]
[Black "Pourramezanali, Amirreza"]
[Result "0-1"]
[ECO "A62"]
[WhiteElo "2134"]
[BlackElo "2537"]
[Annotator "ChessBase"]
[PlyCount "86"]
[EventDate "2018.07.03"]
[EventType "swiss"]
[EventCountry "GEO"]
[SourceTitle "playchess.com"]
[Source "ChessBase"]
[SourceQuality "1"]
[TimeControl "40/5400+30:1800+30"]

1. d4 {[%emt 0:00:00]} Nf6 2. c4 {[%emt 0:00:00]} e6 3. g3 {[%emt 0:00:00]} c5 4. d5 {[%emt 0:00:00]} exd5 5. cxd5 {[%emt 0:00:00]} g6 6. Nc3 {[%emt 0:00:00]} d6 7. Bg2 {[%emt 0:00:26]} Bg7 8. Nf3 {[%emt 0:00:30]} O-O 9. O-O {[%emt 0:00:30]} Re8 10. Bf4 {[%emt 0:00:30]} Na6 11. Re1 {[%emt 0:00:30]} Bg4 12. h3 {[%emt 0:00:30]} Bxf3 13. Bxf3 {[%emt 0:00:30]} Nd7 14. Ne4 {[%emt 0:00:30]} Ne5 15. Bg2 {[%emt 0:00:30]} Nc7 16. g4 {[%emt 0:00:30]} Qd7 17. Bg5 {[%emt 0:00:30]} f5 18. gxf5 {[%emt 0:00:30]} gxf5 19. Ng3 {[%emt 0:00:30]} Kh8 20. e4 {[%emt 0:00:30]} fxe4 21. Bxe4 {[%emt 0:00:30]} Rf8 22. Qh5 {[%emt 0:00:30]} Bf6 23. Bf5 {[%emt 0:00:30]} Qg7 24. Bh6 {[%emt 0:00:30]} Qg8 25. Bxf8 {[%emt 0:00:30]} Rxf8 26. Rad1 {[%emt 0:00:30]} Nb5 27. Kh1 {[%emt 0:00:30]} Nd4 28. Rg1 {[%emt 0:00:30]} Nef3 29. Rxd4 {[%emt 0:00:30]} Nxd4 30. Be4 {[%emt 0:00:30]} Qf7 31. Qxf7 {[%emt 0:00:30]} Rxf7 32. b3 {[%emt 0:00:30]} Be5 33. Kg2 {[%emt 0:00:30]} b5 34. Re1 {[%emt 0:00:30]} a5 35. Re3 {[%emt 0:00:30]} b4 36. Nf1 {[%emt 0:00:30]} Nb5 37. Nd2 {[%emt 0:00:30]} Nc3 38. Nc4 {[%emt 0:00:30]} Bd4 39. Nxd6 {[%emt 0:00:30]} Rd7 40. Rxc3 {[%emt 0:00:30]} bxc3 41. Nc4 {[%emt 0:30:30]} Rxd5 42. Ne5 {[%emt 0:00:30]} Rxe5 43. Bd3 {[%emt 0:00:30]} Re2 0-1

[Event "4th Batumi Cup 2018"]
[Site "Batumi"]
[Date "2018.07.05"]
[Round "4"]
[White "Al Hosani, Omran"]
[Black "Oboladze, Luka"]
[Result "1/2-1/2"]
[ECO "E30"]
[WhiteElo "2089"]
[BlackElo "2378"]
[Annotator "NA"]
[PlyCount "91"]
[EventDate "2018.07.03"]
[EventType "swiss"]
[EventCountry "GEO"]
[SourceTitle "playchess.com"]
[Source "ChessBase"]
[SourceQuality "1"]
[TimeControl "40/5400+30:1800+30"]

1. d4 {[%emt 0:05:39]} Nf6 {[%emt 0:09:51]} 2. c4 {[%emt 0:00:30]} e6 {[%emt 0:00:30]} 3. Nc3 {[%emt 0:00:30]} Bb4 {[%emt 0:00:30]} 4. Bg5 {[%emt 0:00:30]} h6 {[%emt 0:00:30]} 5. Bxf6 {[%emt 0:00:30]} Qxf6 {[%emt 0:00:30]} 6. e3 {[%emt 0:00:30]} c5 {[%emt 0:00:30]} 7. Nf3 {[%emt 0:00:30]} Nc6 {[%emt 0:00:30]} 8. Be2 {[%emt 0:00:30]} d6 {[%emt 0:00:30]} 9. O-O {[%emt 0:00:30]} Bxc3 {[%emt 0:00:30]} 10. bxc3 {[%emt 0:00:30]} O-O {[%emt 0:00:30]} 11. dxc5 {[%emt 0:00:30]} dxc5 {[%emt 0:00:30]} 12. Qd6 {[%emt 0:00:30]} Qxc3 {[%emt 0:00:30]} 13. Qxc5 {[%emt 0:00:30]} Bd7 {[%emt 0:00:30]} 14. Rad1 {[%emt 0:00:30]} Rfd8 {[%emt 0:00:30]} 15. Rd3 {[%emt 0:00:30]} Qf6 {[%emt 0:00:30]} 16. Rfd1 {[%emt 0:00:30]} Be8 {[%emt 0:00:30]} 17. Rxd8 {[%emt 0:00:30]} Rxd8 {[%emt 0:00:30]} 18. Rxd8 {[%emt 0:00:30]} Qxd8 {[%emt 0:00:30]} 19. h3 {[%emt 0:00:30]} b6 {[%emt 0:00:30]} 20. Qa3 {[%emt 0:00:30]} Qf6 {[%emt 0:00:30]} 21. Nd4 {[%emt 0:00:30]} Nxd4 {[%emt 0:00:30]} 22. exd4 {[%emt 0:00:30]} Qxd4 {[%emt 0:00:30]} 23. Qxa7 {[%emt 0:00:30]} Bc6 {[%emt 0:00:30]} 24. Qb8+ {[%emt 0:00:30]} Kh7 {[%emt 0:00:30]} 25. Qc7 {[%emt 0:00:30]} Be8 {[%emt 0:00:30]} 26. Qe7 {[%emt 0:00:30]} Qd7 {[%emt 0:00:30]} 27. Qb4 {[%emt 0:00:30]} Qc7 {[%emt 0:00:30]} 28. Bd3+ {[%emt 0:00:30]} Kg8 {[%emt 0:00:30]} 29. Be4 {[%emt 0:00:30]} Qf4 {[%emt 0:00:30]} 30. Bf3 {[%emt 0:00:30]} Qc1+ {[%emt 0:00:30]} 31. Kh2 {[%emt 0:00:30]} Qf4+ {[%emt 0:00:30]} 32. Kg1 {[%emt 0:00:30]} Qd4 {[%emt 0:00:30]} 33. a3 {[%emt 0:00:30]} g6 {[%emt 0:00:30]} 34. g3 {[%emt 0:00:30]} Kg7 {[%emt 0:00:30]} 35. Kg2 {[%emt 0:00:30]} Bd7 {[%emt 0:00:30]} 36. h4 {[%emt 0:00:30]} Bc8 {[%emt 0:00:30]} 37. Qb5 {[%emt 0:00:30]} e5 {[%emt 0:00:30]} 38. Bd5 {[%emt 0:00:30]} Bf5 {[%emt 0:00:30]} 39. Qc6 {[%emt 0:00:30]} g5 {[%emt 0:00:30]} 40. hxg5 {[%emt 0:00:30]} hxg5 {[%emt 0:00:30]} 41. Qb7 {[%emt 0:30:30]} Bg6 {[%emt 0:30:30]} 42. Qe7 {[%emt 0:00:30]} Be4+ {[%emt 0:00:30]} 43. f3 {[%emt 0:00:30]} Bxd5 {[%emt 0:00:30]} 44. Qxg5+ {[%emt 0:00:30]} Kh7 {[%emt 0:00:30]} 45. Qh5+ {[%emt 0:00:30]} Kg7 {[%emt 0:00:30]} 46. Qg5+ {[%emt 0:00:30]} 1/2-1/2

[Event "4th Batumi Cup 2018"]
[Site "Batumi"]
[Date "2018.07.06"]
[Round "5"]
[White "Smirnov, Pavel"]
[Black "Jumabayev, Rinat"]
[Result "1/2-1/2"]
[ECO "E11"]
[WhiteElo "2576"]
[BlackElo "2594"]
[Annotator "ChessBase"]
[PlyCount "21"]
[EventDate "2018.07.03"]
[EventType "swiss"]
[EventCountry "GEO"]
[SourceTitle "playchess.com"]
[Source "ChessBase"]
[SourceQuality "1"]
[TimeControl "40/5400+30:1800+30"]

1. d4 {[%emt 0:00:32]} Nf6 {[%emt 0:03:51]} 2. c4 {[%emt 0:00:50]} e6 {[%emt 0:00:05]} 3. g3 {[%emt 0:00:25]} Bb4+ {[%emt 0:01:06]} 4. Bd2 {[%emt 0:00:11]} Be7 {[%emt 0:00:05]} 5. Bg2 {[%emt 0:00:05]} d5 {[%emt 0:00:01]} 6. Nf3 {[%emt 0:00:12]} O-O {[%emt 0:00:06]} 7. O-O {[%emt 0:00:07]} Nbd7 {[%emt 0:00:07]} 8. b4 {[%emt 0:02:22]} c6 {[%emt 0:15:59]} 9. Qc2 {[%emt 0:00:35]} Ne4 {[%emt 0:00:25]} 10. Be1 {[%emt 0:00:29]} f5 {[%emt 0:09:48]} 11. Nc3 {[%emt 0:04:57]} 1/2-1/2

[Event "4th Batumi Cup 2018"]
[Site "Batumi"]
[Date "2018.07.06"]
[Round "5"]
[White "Sindarov, Javokhir"]
[Black "Tutisani, Noe"]
[Result "1/2-1/2"]
[ECO "B90"]
[WhiteElo "2474"]
[BlackElo "2469"]
[Annotator "ChessBase"]
[PlyCount "39"]
[EventDate "2018.07.03"]
[EventType "swiss"]
[EventCountry "GEO"]
[SourceTitle "playchess.com"]
[Source "ChessBase"]
[SourceQuality "1"]
[TimeControl "40/5400+30:1800+30"]

1. e4 {[%emt 0:00:00]} c5 {[%emt 0:00:00]} 2. Nf3 {[%emt 0:00:00]} d6 {[%emt 0:00:00]} 3. d4 {[%emt 0:00:00]} cxd4 {[%emt 0:00:00]} 4. Nxd4 {[%emt 0:00:00]} Nf6 {[%emt 0:00:00]} 5. Nc3 {[%emt 0:00:00]} a6 {[%emt 0:00:00]} 6. a3 {[%emt 0:00:07]} g6 {[%emt 0:00:11]} 7. Be3 {[%emt 0:06:50]} Bg7 {[%emt 0:00:09]} 8. f3 {[%emt 0:00:33]} Nc6 {[%emt 0:02:35]} 9. g4 {[%emt 0:18:04]} O-O {[%emt 0:01:43]} 10. Qd2 {[%emt 0:04:05]} Be6 {[%emt 0:02:32]} 11. O-O-O {[%emt 0:04:51]} Nxd4 {[%emt 0:03:51]} 12. Bxd4 {[%emt 0:00:16]} Qa5 {[%emt 0:00:02]} 13. Kb1 {[%emt 0:05:02]} Rfc8 {[%emt 0:00:15]} 14. h4 {[%emt 0:04:15]} b5 {[%emt 0:04:54]} 15. Nd5 {[%emt 0:05:33]} Qxd2 {[%emt 0:01:03]} 16. Rxd2 {[%emt 0:00:11]} Bxd5 {[%emt 0:03:04]} 17. exd5 {[%emt 0:00:08]} Nd7 {[%emt 0:00:06]} 18. Bxg7 {[%emt 0:00:31]} Kxg7 {[%emt 0:00:06]} 19. g5 {[%emt 0:07:11]} h6 {[%emt 0:01:50]} 20. Bh3 {[%emt 0:04:25]} 1/2-1/2

[Event "4th Batumi Cup 2018"]
[Site "Batumi"]
[Date "2018.07.06"]
[Round "5"]
[White "Duzhakov, Ilya"]
[Black "Mgeladze, Tamaz"]
[Result "1-0"]
[ECO "E62"]
[WhiteElo "2448"]
[BlackElo "2374"]
[Annotator "ChessBase"]
[PlyCount "119"]
[EventDate "2018.07.03"]
[EventType "swiss"]
[EventCountry "GEO"]
[SourceTitle "playchess.com"]
[Source "ChessBase"]
[SourceQuality "1"]
[TimeControl "40/5400+30:1800+30"]

1. d4 {[%emt 0:01:18]} Nf6 {[%emt 0:00:00]} 2. c4 {[%emt 0:00:13]} g6 {[%emt 0:00:00]} 3. Nc3 {[%emt 0:00:08]} Bg7 {[%emt 0:00:00]} 4. g3 {[%emt 0:00:09]} O-O {[%emt 0:00:21]} 5. Bg2 {[%emt 0:01:27]} d6 {[%emt 0:00:22]} 6. Nf3 {[%emt 0:00:09]} Nc6 {[%emt 0:00:03]} 7. O-O {[%emt 0:00:13]} Rb8 {[%emt 0:00:08]} 8. Bf4 {[%emt 0:00:11]} a6 {[%emt 0:00:28]} 9. Rc1 {[%emt 0:00:37]} h6 {[%emt 0:01:27]} 10. h3 {[%emt 0:03:17]} g5 {[%emt 0:02:21]} 11. Be3 {[%emt 0:01:52]} g4 {[%emt 0:00:56]} 12. hxg4 {[%emt 0:00:09]} Nxg4 {[%emt 0:00:03]} 13. Qd2 {[%emt 0:00:57]} Nxe3 {[%emt 0:11:14]} 14. Qxe3 {[%emt 0:00:22]} Bg4 {[%emt 0:03:08]} 15. Rfd1 {[%emt 0:03:07]} Qd7 {[%emt 0:01:36]} 16. d5 {[%emt 0:01:59]} Nd8 {[%emt 0:10:38]} 17. c5 {[%emt 0:03:54]} e5 {[%emt 0:03:32]} 18. dxe6 {[%emt 0:01:15]} fxe6 {[%emt 0:00:18]} 19. cxd6 {[%emt 0:02:57]} cxd6 {[%emt 0:00:01]} 20. Ne5 {[%emt 0:01:30]} Bxe5 {[%emt 0:00:36]} 21. Qxe5 {[%emt 0:00:27]} Nf7 {[%emt 0:08:19]} 22. Qf4 {[%emt 0:08:09]} Bf5 {[%emt 0:08:11]} 23. Ne4 {[%emt 0:04:12]} Bxe4 {[%emt 0:00:26]} 24. Qxe4 {[%emt 0:00:42]} Kh8 {[%emt 0:02:59]} 25. Qg6 {[%emt 0:04:54]} Rg8 {[%emt 0:03:49]} 26. Qf6+ {[%emt 0:00:18]} Rg7 {[%emt 0:00:01]} 27. Rc4 {[%emt 0:00:40]} Kg8 {[%emt 0:12:05]} 28. Rdc1 {[%emt 0:01:29]} Re8 {[%emt 0:07:00]} 29. Rc7 {[%emt 0:02:01]} Qd8 {[%emt 0:00:02]} 30. Qf4 {[%emt 0:05:18]} b6 {[%emt 0:02:47]} 31. Qd4 {[%emt 0:06:28]} b5 {[%emt 0:01:58]} 32. R1c6 {[%emt 0:06:37]} Rf8 {[%emt 0:03:53]} 33. Qc3 {[%emt 0:04:46]} h5 {[%emt 0:03:51]} 34. Bh3 {[%emt 0:11:30]} b4 {[%emt 0:03:44]} 35. Qxb4 {[%emt 0:06:30]} h4 {[%emt 0:00:01]} 36. Rc8 {[%emt 0:00:48]} Qg5 {[%emt 0:03:09]} 37. Rxf8+ {[%emt 0:02:28]} Kxf8 {[%emt 0:00:02]} 38. Rc8+ {[%emt 0:01:24]} Ke7 {[%emt 0:00:01]} 39. Rc7+ {[%emt 0:00:22]} Kf6 {[%emt 0:00:34]} 40. Qe4 {[%emt 0:00:00]} Ne5 {[%emt 0:00:00]} 41. Rxg7 {[%emt 0:02:47]} Kxg7 {[%emt 0:06:49]} 42. Qxh4 {[%emt 0:00:30]} Qc1+ {[%emt 0:00:15]} 43. Kg2 {[%emt 0:01:28]} Qc6+ {[%emt 0:02:17]} 44. Kh2 {[%emt 0:00:21]} Ng6 {[%emt 0:00:22]} 45. Qg5 {[%emt 0:02:36]} Qb6 {[%emt 0:00:57]} 46. Kg1 {[%emt 0:00:01]} Qxb2 {[%emt 0:09:30]} 47. Bxe6 {[%emt 0:00:06]} Qb1+ {[%emt 0:00:06]} 48. Kh2 {[%emt 0:00:20]} Qf1 {[%emt 0:00:12]} 49. Qe3 {[%emt 0:00:44]} Qd1 {[%emt 0:03:34]} 50. Bg4 {[%emt 0:03:30]} Qa4 {[%emt 0:01:08]} 51. Qe6 {[%emt 0:02:04]} Qd4 {[%emt 0:01:23]} 52. Kg2 {[%emt 0:00:12]} Ne5 {[%emt 0:01:05]} 53. Bf5 {[%emt 0:00:15]} Nf7 {[%emt 0:02:03]} 54. Qe7 {[%emt 0:06:20]} Qd5+ {[%emt 0:02:08]} 55. e4 {[%emt 0:00:11]} Qd4 {[%emt 0:00:01]} 56. Qb7 {[%emt 0:00:54]} Qc4 {[%emt 0:00:44]} 57. Qb2+ {[%emt 0:00:25]} Kf8 {[%emt 0:00:16]} 58. Qf6 {[%emt 0:00:17]} Kg8 {[%emt 0:00:43]} 59. Kh2 {[%emt 0:00:34]} Qe2 {[%emt 0:01:36]} 60. Be6 {[%emt 0:00:23]} 1-0

[Event "4th Batumi Cup 2018"]
[Site "Batumi"]
[Date "2018.07.06"]
[Round "5"]
[White "Rahul Srivatshav P"]
[Black "Primbetov, Kazbek"]
[Result "1-0"]
[ECO "B54"]
[WhiteElo "2397"]
[BlackElo "2257"]
[Annotator "NA"]
[PlyCount "125"]
[EventDate "2018.07.03"]
[EventType "swiss"]
[EventCountry "GEO"]
[SourceTitle "playchess.com"]
[Source "ChessBase"]
[SourceQuality "1"]
[TimeControl "40/5400+30:1800+30"]

{[%evp 17,124,-8,32767,16,32767,32767,33,18,32767,24,20,32767,10,32767,32767,32767,32767,32767,32767,32767,32767,147,153,32767,196,187,32767,32767,75,32767,32767,1,2,7,32767,32767,32767,32767,32767,32767,32767,12,18,32767,32767,0,68,32767,61,58,32767,32767,106,24,32767,32767,32767,2,6,32767,24,0,0,0,20,18,16,32767,32767,26,32767,24,50,32767,32767,32767,126,114,115,102,114,123,127,128,153,141,600,650,283,460,521,12841,360,32767,453,32767,32767,32767,12844,650,564,709,32767,600,12845,1446,12846,704,5189]} 1. e4 {[%emt 0:00:00]} c5 {[%emt 0:00:00]} 2. Nf3 {[%emt 0:00:00]} d6 {[%emt 0:00:00]} 3. Bb5+ {[%emt 0:00:28]} Bd7 {[%emt 0:00:00]} 4. c4 {[%emt 0:00:33]} Nc6 {[%emt 0:00:00]} 5. d4 {[%emt 0:00:30]} cxd4 {[%emt 0:00:00]} 6. Nxd4 {[%emt 0:00:19]} Nf6 {[%emt 0:00:00] B54: Sicilian: 2...d6 3 d4 cxd4 4 Nxd4, Unusual Lines} (6... g6 7. Nc3 Bg7 8. Be3 Nf6 9. f3 O-O 10. Bxc6 bxc6 11. O-O e5 12. Nde2 Be6 13. Qa4 d5 14. cxd5 cxd5 15. exd5 Nxd5 16. Nxd5 Qxd5 {½-½ (31) Romanov,E (2619)-Artemiev,V (2704) Sochi 2018}) 7. Nc3 {[%emt 0:00:28]} g6 {[%emt 0:05:25]} 8. O-O {[%emt 0:00:39]} Bg7 {[%emt 0:00:05]} 9. Bxc6 {[%emt 0:06:51]} Bxc6 {[%emt 0:02:58]} 10. Re1 {[%emt 0:01:42] LiveBook: 13 Partien} O-O {[%emt 0:05:15]} 11. h3 $146 {[%emt 0:09:38]} ({Predecessor:} 11. b3 a5 12. Bb2 Nd7 {1-0 (40) Cornette,M (2586)-Moussard,J (2487) Saint-Quentin 2015}) 11... Rc8 {[%emt 0:01:59]} 12. b3 {[%emt 0:06:13]} a6 {[%emt 0:18:36]} 13. Bb2 {[%emt 0:01:19]} e6 {[%emt 0:06:42]} 14. Qd2 {[%emt 0:15:40]} Qa5 {[%emt 0:01:25]} 15. Rad1 {[%emt 0:03:08]} Qh5 {[%emt 0:03:18]} 16. Ba3 {[%emt 0:07:51]} Rfd8 {[%emt 0:08:08]} 17. Nxc6 {[%emt 0:01:35]} Rxc6 {[%emt 0:00:16]} 18. e5 {[%emt 0:01:32]} Ne8 {[%emt 0:00:37]} 19. exd6 {[%emt 0:02:16]} Qa5 {[%emt 0:01:21]} 20. Nb1 {[%emt 0:04:46]} Qf5 {[%emt 0:11:10]} 21. c5 {[%emt 0:02:07]} b6 {[%emt 0:04:12]} 22. cxb6 {[%emt 0:17:40]} Nxd6 {[%emt 0:09:13]} 23. Bxd6 {[%emt 0:07:34]} Rxb6 {[%emt 0:00:30]} 24. g4 {[%emt 0:03:50]} Qf6 $1 {[%emt 0:01:48]} 25. Be5 {[%emt 0:01:03]} Rxd2 {[%emt 0:00:30]} 26. Bxf6 {[%emt 0:00:01]} Rxd1 {[%emt 0:00:07]} 27. Rxd1 {[%emt 0:00:02]} Bxf6 {[%emt 0:00:06]} 28. Na3 {[%emt 0:00:10]} a5 {[%emt 0:02:36]} 29. Nc4 {[%emt 0:00:26]} Rb5 {[%emt 0:00:01]} 30. Rd7 {[%emt 0:03:32]} Bc3 {[%emt 0:02:39]} 31. Rxf7 {[%emt 0:00:41]} a4 {[%emt 0:00:11]} (31... Rxb3 $1 $11 32. axb3 Kxf7) 32. Re7 {[%emt 0:00:25]} axb3 {[%emt 0:01:29]} 33. axb3 {[%emt 0:00:01]} e5 {[%emt 0:00:39]} 34. Kg2 {[%emt 0:00:25]} h6 {[%emt 0:01:30]} 35. Nd6 {[%emt 0:01:24]} (35. Re6 $16) 35... Rxb3 {[%emt 0:00:12]} 36. Ne4 {[%emt 0:00:06]} Bd4 {[%emt 0:00:06]} 37. Nf6+ {[%emt 0:00:40]} Kf8 {[%emt 0:00:07]} 38. Rh7 {[%emt 0:01:16]} Rb2 {[%emt 0:06:29]} 39. Nd7+ {[%emt 0:00:36]} Kg8 {[%emt 0:00:38]} 40. Nf6+ {[%emt 0:00:00]} Kf8 {[%emt 0:00:00]} 41. Ne4 {[%emt 0:00:48]} Be3 {[%emt 0:02:48]} 42. Kf3 {[%emt 0:02:06]} Bf4 {[%emt 0:00:05]} 43. Nc5 {[%emt 0:00:59]} Kg8 {[%emt 0:00:54]} 44. Rd7 {[%emt 0:01:28]} Rc2 {[%emt 0:00:28]} 45. Ne6 {[%emt 0:01:17]} Rc3+ {[%emt 0:00:49]} 46. Ke4 {[%emt 0:00:39]} Rc4+ {[%emt 0:02:19]} (46... Kh8 $14) 47. Kd3 {[%emt 0:00:48]} Ra4 {[%emt 0:00:08]} 48. Rg7+ {[%emt 0:01:08]} Kh8 {[%emt 0:00:00]} 49. Rxg6 {[%emt 0:00:45]} e4+ {[%emt 0:00:52] [#]} 50. Ke2 $1 {[%emt 0:00:48]} Ra2+ {[%emt 0:00:22]} 51. Kf1 {[%emt 0:00:31]} e3 $2 {[%emt 0:03:37]} (51... Bc1 $16 52. Nd4 Ra4) 52. Nxf4 {[%emt 0:00:36]} Rxf2+ {[%emt 0:00:02] [#]} 53. Kg1 $1 {[%emt 0:01:34]} Rxf4 {[%emt 0:01:36]} 54. Rxh6+ {[%emt 0:00:05]} Kg7 {[%emt 0:00:13]} 55. Re6 {[%emt 0:00:02]} Rf3 {[%emt 0:00:19]} 56. Kg2 {[%emt 0:00:17]} Rf2+ {[%emt 0:00:04]} 57. Kg3 {[%emt 0:00:01]} Re2 {[%emt 0:00:06]} 58. h4 {[%emt 0:03:02]} Re1 {[%emt 0:00:33]} 59. Kf4 {[%emt 0:01:18]} Rf1+ {[%emt 0:01:12]} 60. Kg5 {[%emt 0:00:11]} Rf3 {[%emt 0:00:05]} 61. h5 {[%emt 0:00:23]} Kf7 {[%emt 0:01:56]} 62. Re4 {[%emt 0:00:05]} Rh3 $18 {[%emt 0:02:59]} 63. Kf4 {[%emt 0:00:15]} 1-0

[Event "4th Batumi Cup 2018"]
[Site "Batumi"]
[Date "2018.07.06"]
[Round "5"]
[White "Oboladze, Luka"]
[Black "Khomeriki, Nino"]
[Result "0-1"]
[ECO "A25"]
[WhiteElo "2378"]
[BlackElo "2257"]
[Annotator "RC"]
[PlyCount "120"]
[EventDate "2018.07.03"]
[EventType "swiss"]
[EventCountry "GEO"]
[SourceTitle "playchess.com"]
[Source "ChessBase"]
[SourceQuality "1"]
[TimeControl "40/5400+30:1800+30"]

1. c4 {[%emt 0:00:00]} e5 {[%emt 0:00:00]} 2. Nc3 {[%emt 0:00:00]} Nc6 {[%emt 0:00:00]} 3. g3 {[%emt 0:00:00]} g6 {[%emt 0:00:00]} 4. Bg2 {[%emt 0:00:00]} Bg7 {[%emt 0:00:00]} 5. e3 {[%emt 0:00:00]} Nf6 {[%emt 0:00:02]} 6. Nge2 {[%emt 0:00:03]} O-O {[%emt 0:00:06]} 7. O-O {[%emt 0:00:07]} d6 {[%emt 0:00:07]} 8. d3 {[%emt 0:00:06]} Be6 {[%emt 0:00:17]} 9. Nd5 {[%emt 0:00:07]} Qd7 {[%emt 0:00:17]} 10. e4 {[%emt 0:00:18]} Ne8 {[%emt 0:04:44]} 11. Be3 {[%emt 0:07:21]} Nd8 {[%emt 0:01:21]} 12. f4 {[%emt 0:07:20]} c6 {[%emt 0:03:17]} 13. f5 {[%emt 0:00:58]} gxf5 {[%emt 0:04:13]} 14. exf5 {[%emt 0:00:16]} Bxf5 {[%emt 0:00:47]} 15. Rxf5 {[%emt 0:00:40]} cxd5 {[%emt 0:00:06]} 16. Qf1 {[%emt 0:02:45]} d4 {[%emt 0:01:55]} 17. Bd2 {[%emt 0:01:04]} Nc6 {[%emt 0:08:21]} 18. Be4 {[%emt 0:10:33]} Ne7 {[%emt 0:06:36]} 19. g4 {[%emt 0:09:29]} d5 {[%emt 0:08:36]} 20. cxd5 {[%emt 0:03:49]} Nd6 {[%emt 0:01:11]} 21. Ng3 {[%emt 0:08:19]} Nexf5 {[%emt 0:04:08]} 22. Bxf5 {[%emt 0:01:36]} Nxf5 {[%emt 0:01:23]} 23. Nxf5 {[%emt 0:00:12]} f6 {[%emt 0:07:41]} 24. Qf3 {[%emt 0:01:13]} Rf7 {[%emt 0:02:52]} 25. d6 {[%emt 0:15:19]} Rc8 {[%emt 0:02:17]} 26. Bh6 {[%emt 0:09:23]} Bf8 {[%emt 0:02:51]} 27. Bxf8 {[%emt 0:00:32]} Kxf8 {[%emt 0:00:22]} 28. Nh6 {[%emt 0:00:29]} Rc6 {[%emt 0:04:58]} 29. Nxf7 {[%emt 0:02:09]} Qxf7 {[%emt 0:07:20]} 30. Qf5 {[%emt 0:05:05]} Rxd6 {[%emt 0:02:19]} 31. Rf1 {[%emt 0:03:43]} Kg7 {[%emt 0:01:38]} 32. Qe4 {[%emt 0:01:19]} Rc6 {[%emt 0:08:06]} 33. g5 {[%emt 0:03:45]} Qg6 {[%emt 0:06:01]} 34. Rf5 {[%emt 0:00:06]} fxg5 {[%emt 0:07:12]} 35. Qxe5+ {[%emt 0:00:12]} Kh6 {[%emt 0:00:18]} 36. Rf3 {[%emt 0:01:36]} Qe6 {[%emt 0:01:48]} 37. Qxd4 {[%emt 0:01:08]} Kg6 {[%emt 0:01:06]} 38. Qe4+ {[%emt 0:02:51]} Qxe4 {[%emt 0:00:22]} 39. dxe4 {[%emt 0:00:06]} Rc4 {[%emt 0:04:17]} 40. Rb3 {[%emt 0:00:00]} b6 {[%emt 0:00:00]} 41. Ra3 {[%emt 0:02:14]} a5 {[%emt 0:05:14]} 42. Rb3 {[%emt 0:00:39]} Rb4 {[%emt 0:03:58]} 43. Rf3 {[%emt 0:14:29]} Rxe4 {[%emt 0:03:26]} 44. Rf2 {[%emt 0:01:04]} Rg4+ {[%emt 0:02:23]} 45. Kh1 {[%emt 0:00:10]} h5 {[%emt 0:00:11]} 46. h3 {[%emt 0:00:44]} Rf4 {[%emt 0:01:17]} 47. Rc2 {[%emt 0:00:09]} Kf5 {[%emt 0:00:45]} 48. Kg2 {[%emt 0:00:15]} Rb4 {[%emt 0:00:56]} 49. Kf3 {[%emt 0:00:52]} Rf4+ {[%emt 0:00:58]} 50. Kg2 {[%emt 0:00:18]} Ke5 {[%emt 0:00:45]} 51. Rc6 {[%emt 0:00:56]} Rf6 {[%emt 0:00:14]} 52. Rc8 {[%emt 0:00:27]} Kd4 {[%emt 0:01:00]} 53. Kg3 {[%emt 0:00:36]} Rf4 {[%emt 0:02:36]} 54. Rg8 {[%emt 0:04:13]} h4+ {[%emt 0:00:10]} 55. Kg2 {[%emt 0:00:02]} Rf5 {[%emt 0:00:05]} 56. Rg6 {[%emt 0:00:36]} Rb5 {[%emt 0:03:57]} 57. Kf3 {[%emt 0:00:45]} Kd3 {[%emt 0:01:47]} 58. Kg4 {[%emt 0:08:15]} Kc2 {[%emt 0:00:55]} 59. a4 {[%emt 0:00:21]} Rb4+ {[%emt 0:00:41]} 60. Kxg5 {[%emt 0:00:05]} Kxb2 {[%emt 0:00:19]} 0-1

[Event "4th Batumi Cup 2018"]
[Site "Batumi"]
[Date "2018.07.06"]
[Round "5"]
[White "Martynov, Roman"]
[Black "Sanchez, Louis"]
[Result "1/2-1/2"]
[ECO "E11"]
[WhiteElo "2366"]
[BlackElo "2290"]
[Annotator "NA"]
[PlyCount "48"]
[EventDate "2018.07.03"]
[EventType "swiss"]
[EventCountry "GEO"]
[SourceTitle "playchess.com"]
[Source "ChessBase"]
[SourceQuality "1"]
[TimeControl "40/5400+30:1800+30"]

1. d4 {[%emt 0:00:00]} d5 {[%emt 0:00:00]} 2. c4 {[%emt 0:00:40]} e6 {[%emt 0:00:14]} 3. Nf3 {[%emt 0:00:39]} Nf6 {[%emt 0:00:51]} 4. g3 {[%emt 0:00:24]} Bb4+ {[%emt 0:01:04]} 5. Bd2 {[%emt 0:00:12]} Be7 {[%emt 0:00:48]} 6. Bg2 {[%emt 0:01:13]} c6 {[%emt 0:01:12]} 7. Qc2 {[%emt 0:01:18]} b6 {[%emt 0:01:20]} 8. O-O {[%emt 0:03:18]} Nbd7 {[%emt 0:01:52]} 9. Bf4 {[%emt 0:32:00]} Bb7 {[%emt 0:04:32]} 10. Nc3 {[%emt 0:01:58]} dxc4 {[%emt 0:07:29] LiveBook: 3 Games} 11. Nd2 {[%emt 0:00:58]} Nd5 {[%emt 0:03:15]} 12. Nxc4 {[%emt 0:01:09]} Nxf4 {[%emt 0:00:44]} 13. gxf4 {[%emt 0:00:01]} O-O {[%emt 0:05:57]} 14. Rfd1 {[%emt 0:01:08]} Qc7 {[%emt 0:01:24]} 15. e3 {[%emt 0:00:17]} Rad8 {[%emt 0:00:57]} 16. a3 {[%emt 0:05:56]} c5 {[%emt 0:07:01]} 17. d5 {[%emt 0:09:50]} exd5 {[%emt 0:00:21]} 18. Nxd5 {[%emt 0:00:10]} Bxd5 {[%emt 0:01:55]} 19. Rxd5 {[%emt 0:01:21]} b5 {[%emt 0:02:27]} 20. Ne5 {[%emt 0:01:01]} Nxe5 {[%emt 0:00:36]} 21. Rxe5 {[%emt 0:00:02]} Bd6 {[%emt 0:08:28]} 22. Rd5 {[%emt 0:00:25]} Be7 {[%emt 0:00:42]} 23. Re5 {[%emt 0:01:09]} (23. Bf1 $2 {[%emt 0:37:05][%mdl 8192]}) (23. a4 $11) 23... Bd6 {[%emt 0:01:03]} 24. Rd5 {[%emt 0:00:16]} Be7 {[%emt 0:01:18]} 1/2-1/2